[Event "4th Batumi Cup 2018"]
[Site "Batumi"]
[Date "2018.07.09"]
[Round "8"]
[White "Oboladze, Luka"]
[Black "Rahul Srivatshav P"]
[Result "1-0"]
[ECO "A15"]
[WhiteElo "2378"]
[BlackElo "2397"]
[Annotator "NA"]
[PlyCount "139"]
[EventDate "2018.07.03"]
[EventType "swiss"]
[EventCountry "GEO"]
[SourceTitle "playchess.com"]
[Source "ChessBase"]
[SourceQuality "1"]
[TimeControl "40/5400+30:1800+30"]

1. Nf3 {[%emt 0:00:00]} Nf6 {[%emt 0:00:00]} 2. c4 {[%emt 0:00:00]} g6 {[%emt 0:00:11]} 3. g3 {[%emt 0:00:00]} Bg7 {[%emt 0:00:22]} 4. Bg2 {[%emt 0:00:06]} O-O {[%emt 0:00:20]} 5. O-O {[%emt 0:00:08]} d6 {[%emt 0:00:20]} 6. Nc3 {[%emt 0:00:20]} Nc6 {[%emt 0:00:32]} 7. d3 {[%emt 0:00:17]} e5 {[%emt 0:00:44]} 8. b3 {[%emt 0:00:53]} h6 {[%emt 0:02:09]} 9. Bb2 {[%emt 0:00:22]} Be6 {[%emt 0:01:48] A15: English Opening: 1...Nf6} 10. e3 {[%emt 0:00:35]} (10. d4 exd4 11. Nxd4 Bd7 12. Nd5 Nxd5 13. cxd5 Nxd4 14. Bxd4 Re8 15. e3 a5 16. Rc1 Be5 17. Qd2 {1-0 (48) Bacrot,E (2720)-Al Modiahki,M (2549) Dubai 2014}) 10... Qd7 {[%emt 0:09:44]} 11. d4 {[%emt 0:00:32]} exd4 {[%emt 0:02:40]} 12. Nxd4 $146 {[%emt 0:00:13]} ({Predecessor:} 12. exd4 Bh3 13. d5 Bxg2 14. Kxg2 Ne7 15. Re1 Rfe8 16. Qd3 Nf5 17. Nd4 Nxd4 18. Qxd4 {1-0 (81) Oussedik,M (2242)-Pitterson,J (2221) Istanbul 2012}) 12... Nxd4 {[%emt 0:03:20]} 13. Qxd4 {[%emt 0:00:33]} Ng4 {[%emt 0:05:19]} 14. Qd2 {[%emt 0:00:38]} c6 {[%emt 0:11:29]} 15. Rad1 {[%emt 0:02:30]} Rfd8 {[%emt 0:02:09]} 16. Ne4 {[%emt 0:03:55]} d5 {[%emt 0:07:36]} 17. Bxg7 {[%emt 0:10:49]} Kxg7 {[%emt 0:09:27]} 18. Qd4+ {[%emt 0:02:11]} Kg8 {[%emt 0:01:55]} 19. Nc5 {[%emt 0:01:32]} Qe7 {[%emt 0:00:25]} 20. Nxe6 {[%emt 0:01:43]} Qxe6 {[%emt 0:00:05]} 21. cxd5 {[%emt 0:00:13]} cxd5 {[%emt 0:02:15]} 22. Bxd5 {[%emt 0:00:44]} Qf5 {[%emt 0:01:10]} 23. h3 {[%emt 0:18:45]} Ne5 {[%emt 0:04:44]} 24. Qf4 {[%emt 0:01:48]} Qxf4 {[%emt 0:07:02]} 25. gxf4 {[%emt 0:02:20]} Nc6 {[%emt 0:00:20]} 26. Bf3 {[%emt 0:03:03]} Kg7 {[%emt 0:02:14]} 27. Rc1 {[%emt 0:08:00]} Rd2 {[%emt 0:02:13]} 28. Rfd1 {[%emt 0:01:43]} Rad8 {[%emt 0:00:25]} 29. Rxd2 {[%emt 0:01:58]} Rxd2 {[%emt 0:00:02]} 30. a3 {[%emt 0:06:25]} Rd3 {[%emt 0:05:45]} 31. Bd1 {[%emt 0:00:51]} Na5 {[%emt 0:02:47]} 32. Rb1 {[%emt 0:01:06]} Kf6 {[%emt 0:03:44]} 33. Kf1 {[%emt 0:00:18]} Ke7 {[%emt 0:00:39]} 34. Ke2 {[%emt 0:00:22]} Rd5 {[%emt 0:01:18]} 35. b4 {[%emt 0:05:06]} Nc4 {[%emt 0:02:19]} 36. Bb3 {[%emt 0:00:49]} b5 {[%emt 0:00:30]} 37. Bxc4 $1 {[%emt 0:00:39]} bxc4 {[%emt 0:00:02]} 38. Rc1 {[%emt 0:00:06]} Rd3 {[%emt 0:00:30]} 39. a4 {[%emt 0:00:27]} Ra3 {[%emt 0:02:07]} 40. a5 {[%emt 0:00:00]} Ra2+ {[%emt 0:00:00]} 41. Kf3 {[%emt 0:00:30]} Rb2 {[%emt 0:07:49]} 42. Rxc4 {[%emt 0:00:08]} Kd7 {[%emt 0:00:05]} 43. e4 {[%emt 0:02:13]} Rb3+ {[%emt 0:00:40]} 44. Kg2 {[%emt 0:00:19]} Kd6 {[%emt 0:02:43]} 45. f3 {[%emt 0:00:55]} h5 {[%emt 0:00:59]} 46. Kg3 {[%emt 0:00:49]} Rb1 {[%emt 0:00:47]} (46... Kd7 {is a better defense.} 47. f5 gxf5 48. exf5 Kd6) 47. e5+ {[%emt 0:03:29]} Kd7 {[%emt 0:01:39]} 48. Rd4+ {[%emt 0:06:00]} Ke7 {[%emt 0:01:43]} 49. f5 {[%emt 0:04:34]} gxf5 {[%emt 0:03:45]} 50. Kf4 {[%emt 0:01:07]} Rb3 {[%emt 0:00:37]} 51. h4 {[%emt 0:01:32]} Ke6 {[%emt 0:05:47]} 52. Rd6+ {[%emt 0:00:36]} Ke7 {[%emt 0:00:01]} 53. Ra6 {[%emt 0:00:45]} Rxb4+ {[%emt 0:00:11]} 54. Kg5 {[%emt 0:00:12]} Rb7 {[%emt 0:02:59]} 55. Kxh5 {[%emt 0:00:46]} Kf8 {[%emt 0:00:16]} 56. Kg5 {[%emt 0:00:21]} Kg7 {[%emt 0:00:41]} 57. Kxf5 {[%emt 0:00:09]} Rc7 {[%emt 0:00:15]} 58. f4 {[%emt 0:00:10]} Rb7 {[%emt 0:00:06]} 59. h5 {[%emt 0:00:15]} Rc7 {[%emt 0:00:14]} 60. Kg5 {[%emt 0:00:11]} Rb7 $18 {[%emt 0:00:16]} 61. f5 {[%emt 0:00:08]} Rc7 {[%emt 0:00:10]} 62. h6+ {[%emt 0:00:30]} Kh7 {[%emt 0:00:10]} 63. Kf6 {[%emt 0:00:18]} Kxh6 {[%emt 0:00:27]} 64. e6 {[%emt 0:00:13]} fxe6 {[%emt 0:00:52]} 65. fxe6 {[%emt 0:01:03]} Kh7 {[%emt 0:01:02]} 66. e7 {[%emt 0:00:25]} Rc8 {[%emt 0:00:12]} 67. Kf7 {[%emt 0:00:14]} Rc4 {[%emt 0:01:06]} 68. e8=Q {[%emt 0:00:32]} Rf4+ {[%emt 0:00:10]} 69. Rf6 {[%emt 0:00:06]} Rg4 {[%emt 0:00:04]} 70. Qh8+ {[%emt 0:00:18]} 1-0

[Event "4th Batumi Cup 2018"]
[Site "Batumi"]
[Date "2018.07.09"]
[Round "8"]
[White "Mgeladze, Tamaz"]
[Black "Nigmatov, Ortik"]
[Result "1/2-1/2"]
[ECO "A10"]
[WhiteElo "2374"]
[BlackElo "2461"]
[Annotator "RC"]
[PlyCount "230"]
[EventDate "2018.07.03"]
[EventType "swiss"]
[EventCountry "GEO"]
[SourceTitle "playchess.com"]
[Source "ChessBase"]
[SourceQuality "1"]
[TimeControl "40/5400+30:1800+30"]

1. c4 {[%emt 0:00:00]} b6 {[%emt 0:00:00]} 2. Nf3 {[%emt 0:00:26]} Bb7 {[%emt 0:00:00]} 3. g3 {[%emt 0:00:03]} Bxf3 {[%emt 0:00:00]} 4. exf3 {[%emt 0:00:05]} c5 {[%emt 0:00:00]} 5. d4 {[%emt 0:00:06]} cxd4 {[%emt 0:00:00]} 6. Qxd4 {[%emt 0:00:02]} Nc6 {[%emt 0:00:01]} 7. Qd1 {[%emt 0:05:35]} e6 {[%emt 0:05:21]} 8. Nc3 {[%emt 0:01:17]} Nf6 {[%emt 0:04:01]} 9. b3 {[%emt 0:07:32]} Bb4 {[%emt 0:05:55]} 10. Bb2 {[%emt 0:01:40]} Qc7 {[%emt 0:01:05]} 11. Rc1 {[%emt 0:04:41]} d5 {[%emt 0:07:24]} 12. a3 {[%emt 0:05:32]} Bxc3+ {[%emt 0:01:56]} 13. Bxc3 {[%emt 0:00:41]} d4 {[%emt 0:01:25]} 14. Bb2 {[%emt 0:01:10]} O-O {[%emt 0:06:10]} 15. Bd3 {[%emt 0:05:33]} a5 {[%emt 0:00:22]} 16. O-O {[%emt 0:00:48]} Nd7 {[%emt 0:14:55]} 17. Be4 {[%emt 0:03:51]} e5 {[%emt 0:02:04]} 18. f4 {[%emt 0:00:49]} Nc5 {[%emt 0:14:40]} 19. Bd5 {[%emt 0:09:34]} exf4 {[%emt 0:04:17]} 20. b4 {[%emt 0:09:41]} Ne6 {[%emt 0:03:28]} 21. b5 {[%emt 0:04:57]} Ne5 {[%emt 0:00:08]} 22. Bxd4 {[%emt 0:00:51]} Rad8 {[%emt 0:05:31]} 23. Ba1 {[%emt 0:05:17]} Nc5 {[%emt 0:08:16]} 24. gxf4 {[%emt 0:05:49]} Ned3 {[%emt 0:02:02]} 25. Rc3 {[%emt 0:02:18]} Rxd5 {[%emt 0:05:24]} 26. cxd5 {[%emt 0:00:08]} Nxf4 {[%emt 0:00:13]} 27. Rg3 {[%emt 0:02:11]} f6 {[%emt 0:00:01]} 28. Re1 {[%emt 0:01:04]} Qd6 {[%emt 0:01:45]} 29. Qg4 {[%emt 0:01:05]} g6 {[%emt 0:00:27]} 30. Rf3 {[%emt 0:05:22]} Ncd3 {[%emt 0:02:28]} 31. Rxd3 {[%emt 0:05:47]} Nxd3 {[%emt 0:00:08]} 32. Qe6+ {[%emt 0:00:03]} Qxe6 {[%emt 0:00:15]} 33. Rxe6 {[%emt 0:00:01]} Rd8 {[%emt 0:01:57]} 34. Rxb6 {[%emt 0:01:20]} Rxd5 {[%emt 0:00:04]} 35. Bxf6 {[%emt 0:00:49]} Nf4 {[%emt 0:01:52]} 36. f3 {[%emt 0:00:16]} Kf7 {[%emt 0:01:02]} 37. Kf2 {[%emt 0:01:24]} g5 {[%emt 0:01:48]} 38. Bc3 {[%emt 0:02:56]} Rd3 {[%emt 0:00:08]} 39. Bxa5 {[%emt 0:02:22]} Rxa3 {[%emt 0:00:02]} 40. Ra6 {[%emt 0:00:00]} Ne6 {[%emt 0:00:00]} 41. b6 {[%emt 0:02:49]} Rb3 {[%emt 0:04:34]} 42. Bd2 {[%emt 0:01:34]} Rb2 {[%emt 0:02:35]} 43. Ke1 {[%emt 0:02:25]} Rb3 {[%emt 0:04:07]} 44. Kd1 {[%emt 0:02:06]} Ke7 {[%emt 0:02:41]} 45. Ra7+ {[%emt 0:06:42]} Kd6 {[%emt 0:01:37]} 46. Rb7 {[%emt 0:01:13]} Rxf3 {[%emt 0:03:05]} 47. Rxh7 {[%emt 0:00:23]} Rb3 {[%emt 0:00:10]} 48. b7 {[%emt 0:01:01]} Nc5 {[%emt 0:00:46]} 49. Be3 {[%emt 0:03:36]} Nxb7 {[%emt 0:00:14]} 50. Bxg5 {[%emt 0:00:05]} Ke6 {[%emt 0:00:14]} 51. Kc2 {[%emt 0:00:33]} Rb5 {[%emt 0:00:07]} 52. h4 {[%emt 0:00:13]} Nd6 {[%emt 0:00:41]} 53. Kd3 {[%emt 0:00:59]} Rb3+ {[%emt 0:00:31]} 54. Kd4 {[%emt 0:00:42]} Rb4+ {[%emt 0:00:07]} 55. Ke3 {[%emt 0:00:36]} Rb3+ {[%emt 0:00:02]} 56. Kf4 {[%emt 0:00:21]} Rb4+ {[%emt 0:00:01]} 57. Kf3 {[%emt 0:00:22]} Kf5 {[%emt 0:00:13]} 58. Be3 {[%emt 0:01:20]} Rb3 {[%emt 0:01:08]} 59. Rh5+ {[%emt 0:00:05]} Kf6 {[%emt 0:00:09]} 60. Ke2 {[%emt 0:03:49]} Rb2+ {[%emt 0:00:03]} 61. Kd3 {[%emt 0:00:32]} Rb3+ {[%emt 0:00:08]} 62. Kd2 {[%emt 0:00:15]} Nc4+ {[%emt 0:00:09]} 63. Kc2 {[%emt 0:00:12]} Rxe3 {[%emt 0:01:25]} 64. Rc5 {[%emt 0:00:16]} Ne5 {[%emt 0:00:08]} 65. h5 {[%emt 0:00:14]} Rh3 {[%emt 0:00:09]} 66. h6 {[%emt 0:00:08]} Rxh6 {[%emt 0:00:11]} 67. Kc3 {[%emt 0:00:43]} Rh4 {[%emt 0:00:45]} 68. Rc8 {[%emt 0:00:17]} Kf5 {[%emt 0:00:40]} 69. Ra8 {[%emt 0:00:20]} Rc4+ {[%emt 0:00:27]} 70. Kb3 {[%emt 0:00:19]} Rc7 {[%emt 0:00:11]} 71. Ra4 {[%emt 0:00:33]} Nf3 {[%emt 0:00:01]} 72. Ra8 {[%emt 0:00:46]} Ke4 {[%emt 0:00:11]} 73. Kb4 {[%emt 0:00:28]} Nd4 {[%emt 0:00:02]} 74. Rh8 {[%emt 0:00:21]} Nf5 {[%emt 0:00:47]} 75. Rh1 {[%emt 0:01:58]} Rc8 {[%emt 0:01:46]} 76. Rh2 {[%emt 0:00:50]} Nd6 {[%emt 0:03:08]} 77. Rh4+ {[%emt 0:00:10]} Kd5 {[%emt 0:00:03]} 78. Rh1 {[%emt 0:00:54]} Rb8+ {[%emt 0:00:05]} 79. Kc3 {[%emt 0:00:11]} Ne4+ {[%emt 0:00:01]} 80. Kc2 {[%emt 0:00:17]} Kd4 {[%emt 0:01:45]} 81. Rd1+ {[%emt 0:00:46]} Kc4 {[%emt 0:00:07]} 82. Rd7 {[%emt 0:00:54]} Rc8 {[%emt 0:01:19]} 83. Rh7 {[%emt 0:00:15]} Kd4+ {[%emt 0:00:28]} 84. Kb2 {[%emt 0:00:23]} Rc6 {[%emt 0:00:10]} 85. Rh4 {[%emt 0:00:37]} Rc7 {[%emt 0:00:01]} 86. Kb3 {[%emt 0:00:20]} Rb7+ {[%emt 0:00:22]} 87. Kc2 {[%emt 0:00:06]} Rg7 {[%emt 0:00:01]} 88. Kb3 {[%emt 0:00:18]} Rg6 {[%emt 0:00:50]} 89. Kc2 {[%emt 0:00:29]} Rg3 {[%emt 0:00:08]} 90. Kb2 {[%emt 0:00:40]} Re3 {[%emt 0:00:09]} 91. Rh8 {[%emt 0:02:01]} Kc4 {[%emt 0:00:02]} 92. Rh4 {[%emt 0:00:33]} Re2+ {[%emt 0:00:07]} 93. Ka3 {[%emt 0:00:20]} Re1 {[%emt 0:03:27]} 94. Kb2 {[%emt 0:00:15]} Re3 {[%emt 0:00:02]} 95. Rh8 {[%emt 0:02:19]} Re2+ {[%emt 0:01:34]} 96. Ka3 {[%emt 0:00:01]} Nc5 {[%emt 0:00:00]} 97. Rh4+ {[%emt 0:00:23]} Ne4 {[%emt 0:01:26]} 98. Rh8 {[%emt 0:00:09]} Re1 {[%emt 0:11:22]} 99. Kb2 {[%emt 0:00:42]} Re3 {[%emt 0:03:01]} 100. Rh4 {[%emt 0:00:07]} Kb4 {[%emt 0:00:20]} 101. Kc2 {[%emt 0:00:10]} Rc3+ {[%emt 0:01:03]} 102. Kb2 {[%emt 0:00:16]} Rc4 {[%emt 0:00:07]} 103. Rg4 {[%emt 0:00:56]} Rd4 {[%emt 0:00:01]} 104. Rg2 {[%emt 0:00:49]} Nd6 {[%emt 0:00:16]} 105. Kc2 {[%emt 0:00:16]} Nc4 {[%emt 0:00:02]} 106. Rh2 {[%emt 0:00:21]} Na3+ {[%emt 0:00:43]} 107. Kb2 {[%emt 0:00:12]} Rd1 {[%emt 0:00:02]} 108. Rf2 {[%emt 0:01:01]} Rd3 {[%emt 0:03:43]} 109. Rh2 {[%emt 0:00:59]} Nc4+ {[%emt 0:00:27]} 110. Ka2 {[%emt 0:01:16]} Nd2 {[%emt 0:00:35]} 111. Kb2 {[%emt 0:01:35]} Rb3+ {[%emt 0:01:08]} 112. Kc2 {[%emt 0:00:19]} Nc4 {[%emt 0:00:01]} 113. Rh8 {[%emt 0:00:15]} Rc3+ {[%emt 0:00:07]} 114. Kd1 {[%emt 0:00:14]} Re3 {[%emt 0:00:01]} 115. Rb8+ {[%emt 0:00:46]} Kc3 {[%emt 0:00:11]} 1/2-1/2

[Event "4th Batumi Cup 2018"]
[Site "Batumi"]
[Date "2018.07.09"]
[Round "8"]
[White "Lomsadze, Davit"]
[Black "Khalaji, Hanieh"]
[Result "1-0"]
[ECO "A07"]
[WhiteElo "2348"]
[BlackElo "2146"]
[Annotator "NA"]
[PlyCount "53"]
[EventDate "2018.07.03"]
[EventType "swiss"]
[EventCountry "GEO"]
[SourceTitle "playchess.com"]
[Source "ChessBase"]
[SourceQuality "1"]
[TimeControl "40/5400+30:1800+30"]

1. Nf3 {[%emt 0:00:00]} d5 {[%emt 0:07:54]} 2. g3 {[%emt 0:00:00]} c6 {[%emt 0:00:08]} 3. Bg2 {[%emt 0:00:00]} Bf5 {[%emt 0:00:12]} 4. O-O {[%emt 0:00:00]} e6 {[%emt 0:00:23]} 5. d3 {[%emt 0:00:00]} h6 {[%emt 0:00:52]} 6. Nbd2 {[%emt 0:00:00]} Nf6 {[%emt 0:01:13]} 7. Qe1 {[%emt 0:00:00]} Be7 {[%emt 0:01:49]} 8. e4 {[%emt 0:00:03]} Bh7 {[%emt 0:04:03]} 9. Qe2 {[%emt 0:01:46]} O-O {[%emt 0:01:59]} 10. b3 {[%emt 0:00:19]} a5 {[%emt 0:00:37]} 11. a4 {[%emt 0:00:20]} Nbd7 {[%emt 0:04:31] A07: Réti Opening: New York and Capablanca Systems} (11... Na6 12. Bb2 Nb4 13. Rac1 Re8 14. Ne5 Qc7 15. f4 Rad8 16. Kh1 Nd7 17. Nxd7 Rxd7 18. Qg4 Bf8 19. f5 exf5 20. exf5 {½-½ (31) Aleshnia,V (2575)-Nickel,A (2641) ICCF email 2009}) 12. Bb2 {[%emt 0:00:21] LiveBook: 27 Games} b5 {[%emt 0:01:37]} 13. Nd4 {[%emt 0:01:52]} Rc8 {[%emt 0:05:35]} 14. axb5 $146 {[%emt 0:02:41]} ({Predecessor:} 14. e5 Ne8 15. f4 Qb6 16. Kh1 bxa4 17. Rxa4 {0-1 (40) Weyrich,M (2345)-Steffens,O (2305) Germany 1999}) 14... cxb5 {[%emt 0:01:46]} 15. exd5 {[%emt 0:00:37]} Nxd5 {[%emt 0:03:08]} 16. Rfc1 {[%emt 0:01:21]} Bf6 {[%emt 0:04:18]} 17. Ne4 {[%emt 0:06:18]} Qb6 {[%emt 0:06:39]} 18. Nxf6+ {[%emt 0:00:41]} N7xf6 {[%emt 0:01:38]} 19. Qd2 {[%emt 0:02:56]} b4 {[%emt 0:11:26]} 20. Nf3 {[%emt 0:00:21]} Nc3 {[%emt 0:00:16]} 21. Ne5 {[%emt 0:00:47]} a4 {[%emt 0:04:34]} 22. Nc4 {[%emt 0:03:11]} Rxc4 {[%emt 0:07:14]} 23. bxc4 {[%emt 0:00:23]} Qa5 {[%emt 0:00:28]} 24. Bxc3 {[%emt 0:01:09]} bxc3 {[%emt 0:00:05]} 25. Qe1 {[%emt 0:00:19]} a3 {[%emt 0:03:42]} 26. Ra2 {[%emt 0:01:13]} Rb8 {[%emt 0:06:10]} 27. Rca1 $18 {[%emt 0:00:35]} 1-0

[Event "4th Batumi Cup 2018"]
[Site "Batumi"]
[Date "2018.07.09"]
[Round "8"]
[White "Chkhaidze, Nikoloz"]
[Black "Gvetadze, Sofio"]
[Result "0-1"]
[ECO "E90"]
[WhiteElo "2337"]
[BlackElo "2316"]
[Annotator "NA"]
[PlyCount "140"]
[EventDate "2018.07.03"]
[EventType "swiss"]
[EventCountry "GEO"]
[SourceTitle "playchess.com"]
[Source "ChessBase"]
[SourceQuality "1"]
[TimeControl "40/5400+30:1800+30"]

1. d4 {[%emt 0:00:00]} Nf6 {[%emt 0:00:00]} 2. c4 {[%emt 0:00:00]} c5 {[%emt 0:01:20]} 3. d5 {[%emt 0:00:00]} g6 {[%emt 0:00:29]} 4. Nc3 {[%emt 0:00:00]} Bg7 {[%emt 0:00:03]} 5. e4 {[%emt 0:00:00]} d6 {[%emt 0:00:24]} 6. Nf3 {[%emt 0:00:07]} O-O {[%emt 0:01:13]} 7. h3 {[%emt 0:00:09]} Na6 {[%emt 0:01:55]} 8. Bd3 {[%emt 0:00:30]} Nc7 {[%emt 0:01:14]} 9. O-O {[%emt 0:00:28]} a6 {[%emt 0:00:12]} 10. Re1 {[%emt 0:01:04] E90: King's Indian: Classical: Early deviations and 6 h3} (10. Qe2 e5 11. dxe6 Nxe6 12. Be3 Re8 13. Rad1 Bd7 14. Bc2 Qb6 15. b3 Rad8 16. Qd2 Qb4 17. Nd5 Qa3 {½-½ (41) Fodor,T (2493)-Braun,A (2579) Crawley 2016}) 10... Rb8 {[%emt 0:00:39]} 11. e5 {[%emt 0:12:07]} Nfe8 {[%emt 0:01:07]} 12. Bf4 {[%emt 0:05:49]} dxe5 $146 {[%emt 0:05:38]} ({Predecessor:} 12... b5 13. Qd2 bxc4 14. Bxc4 Bd7 15. Re2 Rb4 16. b3 Bb5 17. Qd3 Na8 {0-1 (28) Adla,D (2335)-Needleman,A (2280) Argentina 1989}) 13. Bxe5 {[%emt 0:00:51]} e6 {[%emt 0:01:15]} 14. Qe2 {[%emt 0:10:38]} f6 {[%emt 0:09:45]} 15. Bxc7 {[%emt 0:06:35]} Nxc7 {[%emt 0:00:46]} 16. dxe6 {[%emt 0:00:11]} Bxe6 {[%emt 0:06:27]} 17. Rad1 {[%emt 0:01:44]} Qe8 {[%emt 0:05:39]} 18. a4 {[%emt 0:09:15]} Qf7 {[%emt 1:00:54]} 19. Ne4 {[%emt 0:04:01]} b6 {[%emt 0:03:07]} 20. a5 {[%emt 0:01:16]} bxa5 {[%emt 0:01:22]} 21. Nxc5 {[%emt 0:05:16]} Bc8 {[%emt 0:06:18]} 22. b3 {[%emt 0:05:48]} f5 {[%emt 0:05:49]} 23. Ng5 {[%emt 0:35:41]} Qf6 {[%emt 0:04:10]} 24. Qe7 {[%emt 0:00:17]} Qxe7 {[%emt 0:11:32]} 25. Rxe7 {[%emt 0:00:05]} Ne8 {[%emt 0:00:09]} 26. Nce6 {[%emt 0:12:56]} Bf6 {[%emt 0:16:37]} 27. Rxh7 {[%emt 0:09:05]} Bxe6 {[%emt 0:01:10]} 28. Nxe6 {[%emt 0:00:03]} Kxh7 {[%emt 0:02:08]} 29. Nxf8+ {[%emt 0:00:04]} Kg7 {[%emt 0:01:57]} 30. Ne6+ {[%emt 0:10:26]} Kf7 {[%emt 0:00:07]} 31. Nc5 {[%emt 0:00:03]} Be7 {[%emt 0:00:47]} 32. Nd7 {[%emt 0:03:14]} Rxb3 {[%emt 0:00:23]} 33. c5 {[%emt 0:00:08]} Rc3 {[%emt 0:00:24]} 34. c6 $15 {[%emt 0:04:17]} Bd6 {[%emt 0:00:30]} 35. Bxa6 {[%emt 0:00:46]} Rxc6 {[%emt 0:02:29]} 36. Bb5 {[%emt 0:00:12]} Rc2 {[%emt 0:00:28]} 37. Ba4 {[%emt 0:00:39]} Rb2 {[%emt 0:00:53]} 38. g3 {[%emt 0:01:07]} Rb4 {[%emt 0:01:28]} 39. Bc6 {[%emt 0:00:20]} a4 {[%emt 0:00:12]} 40. Re1 {[%emt 0:00:00]} Nc7 {[%emt 0:00:00]} 41. Ne5+ {[%emt 0:03:35]} Kg7 {[%emt 0:02:03]} 42. Nd3 {[%emt 0:05:25]} Rd4 {[%emt 0:01:13]} 43. Nf4 {[%emt 0:01:09]} a3 {[%emt 0:00:49]} 44. Re2 {[%emt 0:04:04]} g5 {[%emt 0:16:28]} 45. Ng2 {[%emt 0:00:26]} Rc4 {[%emt 0:04:28]} 46. Bd7 {[%emt 0:00:29]} f4 {[%emt 0:00:16]} 47. gxf4 {[%emt 0:02:06]} gxf4 {[%emt 0:00:05]} 48. Nh4 {[%emt 0:02:36]} Kf6 {[%emt 0:00:16]} 49. Nf3 {[%emt 0:02:29]} Rb4 {[%emt 0:00:09]} 50. Bc6 {[%emt 0:00:41]} Ne6 {[%emt 0:02:57]} 51. Bd5 {[%emt 0:00:41]} Nc5 {[%emt 0:00:24]} 52. Kg2 {[%emt 0:01:22]} Kf5 {[%emt 0:00:48]} 53. Nh4+ {[%emt 0:04:01]} Kg5 {[%emt 0:00:21]} 54. Nf3+ {[%emt 0:00:04]} Kh5 {[%emt 0:00:14]} 55. Ra2 {[%emt 0:04:09]} Ra4 {[%emt 0:00:12]} 56. Nd2 {[%emt 0:00:54]} Nd3 {[%emt 0:01:25]} 57. Nc4 {[%emt 0:00:36]} Bc5 {[%emt 0:00:48]} 58. Kf3 {[%emt 0:08:48]} Kg5 {[%emt 0:03:19]} 59. Ra1 {[%emt 0:00:00]} Nb4 {[%emt 0:00:29]} 60. Nd2 {[%emt 0:00:00]} Nxd5 {[%emt 0:01:39]} 61. Ne4+ {[%emt 0:00:00]} Kf5 {[%emt 0:00:22]} 62. Nxc5 {[%emt 0:00:00]} Rc4 {[%emt 0:00:09]} 63. Nd3 {[%emt 0:00:00]} Rc3 {[%emt 0:00:21]} 64. Ke2 {[%emt 0:00:00]} Ke4 {[%emt 0:00:36]} 65. Ne1 {[%emt 0:01:16]} Nb4 {[%emt 0:04:26]} 66. Kd2 {[%emt 0:00:49]} Rb3 {[%emt 0:03:26]} 67. f3+ {[%emt 0:00:16]} Kd4 {[%emt 0:00:37]} 68. h4 {[%emt 0:01:23]} Rb2+ {[%emt 0:01:00]} 69. Kc1 {[%emt 0:01:04]} Na2+ {[%emt 0:01:22]} 70. Kd1 {[%emt 0:00:40]} Kc3 {[%emt 0:00:15]} 0-1

[Event "4th Batumi Cup 2018"]
[Site "Batumi"]
[Date "2018.07.09"]
[Round "8"]
[White "Sattarov, Bobir"]
[Black "Al Hosani, Omran"]
[Result "1-0"]
[ECO "C23"]
[WhiteElo "2328"]
[BlackElo "2089"]
[Annotator "NA"]
[PlyCount "137"]
[EventDate "2018.07.03"]
[EventType "swiss"]
[EventCountry "GEO"]
[SourceTitle "playchess.com"]
[Source "ChessBase"]
[SourceQuality "1"]
[TimeControl "40/5400+30:1800+30"]

1. e4 {[%emt 0:00:06]} e5 {[%emt 0:00:00]} 2. Qf3 {[%emt 0:00:02]} Nc6 {[%emt 0:00:39]} 3. Bc4 {[%emt 0:00:01]} Nf6 {[%emt 0:00:52]} 4. Ne2 {[%emt 0:00:07]} Bc5 {[%emt 0:02:41] C23: Bishop's Opening: 2...Bc5} 5. c3 {[%emt 0:00:25]} d6 {[%emt 0:01:05]} 6. h3 {[%emt 0:00:04]} Qe7 $146 {[%emt 0:01:36]} ({Predecessor:} 6... a6 7. d3 h6 8. O-O O-O 9. Rd1 Be6 10. Nd2 d5 11. Bb3 Kh8 12. Ng3 {1-0 (19) Sattarov,B (2381)-Zherebtsova,A (2252) Moscow 2018}) 7. d3 {[%emt 0:00:04]} Be6 {[%emt 0:00:33]} 8. Bg5 {[%emt 0:00:58]} Bxc4 {[%emt 0:00:54]} 9. dxc4 {[%emt 0:00:27]} Qe6 {[%emt 0:00:33]} 10. Bxf6 {[%emt 0:01:45]} Qxf6 {[%emt 0:01:07]} 11. Qxf6 {[%emt 0:00:33]} gxf6 {[%emt 0:00:02]} 12. Ng3 {[%emt 0:02:23]} h5 {[%emt 0:01:27]} 13. Nd2 {[%emt 0:00:34]} h4 {[%emt 0:00:21]} 14. Nf5 {[%emt 0:01:03]} Ne7 {[%emt 0:00:10]} 15. g3 {[%emt 0:00:28]} Nxf5 {[%emt 0:04:18]} 16. exf5 {[%emt 0:00:18]} Ke7 {[%emt 0:01:53]} 17. Ne4 {[%emt 0:00:25]} a5 {[%emt 0:03:00]} 18. O-O-O {[%emt 0:01:51]} Bb6 {[%emt 0:04:31]} 19. Rd3 {[%emt 0:01:39]} hxg3 {[%emt 0:01:35]} 20. fxg3 {[%emt 0:00:41]} Rag8 {[%emt 0:03:14]} 21. Rdd1 {[%emt 0:10:24]} Rh7 {[%emt 0:02:04]} 22. Kd2 {[%emt 0:04:11]} Rd8 {[%emt 0:06:38]} 23. Ke2 {[%emt 0:01:35]} c6 {[%emt 0:06:18]} 24. g4 {[%emt 0:00:27]} d5 {[%emt 0:00:35]} 25. cxd5 {[%emt 0:00:53]} cxd5 {[%emt 0:00:17]} 26. Ng3 {[%emt 0:00:05]} Bc5 {[%emt 0:02:49]} 27. a4 {[%emt 0:11:43]} Rhh8 {[%emt 0:02:54]} 28. Rd2 {[%emt 0:03:43]} Rd6 {[%emt 0:00:53]} 29. Nh5 {[%emt 0:03:03]} d4 {[%emt 0:01:21]} 30. Ng3 {[%emt 0:01:40]} dxc3 {[%emt 0:02:05]} 31. bxc3 {[%emt 0:01:20]} Rxd2+ {[%emt 0:00:31]} 32. Kxd2 {[%emt 0:00:01]} Rd8+ {[%emt 0:01:32]} (32... Kd7 $16) 33. Kc2 {[%emt 0:04:27]} Be3 {[%emt 0:00:30]} 34. Ne4 {[%emt 0:00:02]} b6 {[%emt 0:01:45]} 35. Re1 {[%emt 0:00:38]} Bf4 {[%emt 0:00:13]} 36. Rd1 {[%emt 0:03:48]} Rc8 {[%emt 0:00:56]} 37. Kb3 {[%emt 0:00:37]} Rc6 {[%emt 0:00:47]} 38. Rd3 {[%emt 0:03:49]} Bh2 {[%emt 0:02:17]} 39. h4 {[%emt 0:01:25]} Bf4 {[%emt 0:00:13]} 40. g5 {[%emt 0:00:00]} fxg5 {[%emt 0:00:00]} 41. hxg5 {[%emt 0:00:58]} Bc1 {[%emt 0:02:01]} 42. Rd1 {[%emt 0:02:38]} Be3 {[%emt 0:02:06]} 43. Rh1 {[%emt 0:00:38]} Kf8 {[%emt 0:01:10]} 44. Rh3 {[%emt 0:01:19]} (44. Nf6 $142 Bf4 45. Rh8+ Ke7 46. Re8+ Kd6 47. g6 fxg6 48. fxg6) 44... Bf4 {[%emt 0:01:17]} 45. Rh8+ {[%emt 0:00:32]} Kg7 {[%emt 0:00:23]} 46. Re8 {[%emt 0:00:54]} Rc7 {[%emt 0:04:53]} 47. Rb8 {[%emt 0:04:03]} Be3 $2 {[%emt 0:00:54]} (47... Rc6 48. Rb7 Kf8) 48. Kc2 {[%emt 0:00:22]} Rd7 {[%emt 0:02:22]} 49. Re8 {[%emt 0:03:40]} Bf4 {[%emt 0:01:07]} 50. Rc8 {[%emt 0:00:29]} Bxg5 {[%emt 0:01:54]} 51. Nxg5 {[%emt 0:00:50]} Kf6 {[%emt 0:00:01]} 52. Nf3 {[%emt 0:00:54]} Kxf5 {[%emt 0:00:09]} 53. Rb8 {[%emt 0:00:46]} Rd6 {[%emt 0:00:35]} 54. Nd2 {[%emt 0:00:15]} Rc6 {[%emt 0:03:25]} 55. Kb3 {[%emt 0:00:40]} ({Better is} 55. Rh8 $18) 55... Kf4 $1 {[%emt 0:00:49]} 56. Nc4 {[%emt 0:07:40]} e4 {[%emt 0:00:21]} 57. Nxb6 {[%emt 0:13:38]} e3 {[%emt 0:02:18]} 58. Nd5+ {[%emt 0:00:27]} Ke4 {[%emt 0:00:32]} 59. c4 $18 {[%emt 0:01:19]} Re6 {[%emt 0:06:31]} 60. Nc3+ {[%emt 0:02:28]} Kf3 {[%emt 0:00:18]} 61. Rf8 {[%emt 0:02:22]} Re7 {[%emt 0:06:31]} 62. c5 {[%emt 0:03:28]} e2 {[%emt 0:00:07]} 63. Nxe2 {[%emt 0:00:05]} Kxe2 {[%emt 0:00:05]} 64. Kc4 {[%emt 0:00:05]} Rb7 {[%emt 0:01:58]} 65. c6 {[%emt 0:00:40]} Rb4+ {[%emt 0:00:12]} 66. Kd5 {[%emt 0:00:40]} Kd3 {[%emt 0:01:27]} 67. c7 {[%emt 0:00:10]} Rd4+ {[%emt 0:00:07]} 68. Ke5 {[%emt 0:00:11]} Re4+ {[%emt 0:00:51]} 69. Kf5 {[%emt 0:00:08]} 1-0